bitfinex/quotes_SOLUSD_20250919
["timestamp","ask_amount","ask_price","bid_price","bid_amount"]
[1758308746685,4.02778445,237.99,237.98,32.44]
[1758308747505,4.02778445,237.99,237.98,33.11]
[1758308747506,4.0278891,237.99,237.98,33.11]
[1758308748513,4.0278891,237.99,237.98,32.44]
[1758308749908,4.20203378,237.98,237.94,80.8]
[1758308750117,2.97540866,237.95,237.92,0.67]
[1758308750304,4.20203378,237.98,237.93,32.44]
[1758308750491,1.05263881,237.97,237.93,32.44]
[1758308750692,1.05263881,237.97,237.93,33.11]
[1758308750892,1.05263881,237.97,237.94,0.67]
[1758308751122,1.05263881,237.97,237.95,32.48]
[1758308751419,7.17779561,237.96,237.95,32.48]
[1758308751598,8.23043442,237.96,237.94,0.67]
[1758308751806,4.02630138,237.95,237.92,14.26559401]
[1758308752007,2.97366257,237.95,237.93,32.48]
[1758308752326,1.90313811,237.95,237.93,33.15]
[1758308752920,15.1666665,268.43,237.93,33.15]
[1758308753091,1.90313811,237.95,237.93,32.48]
[1758308753419,1.90313811,237.95,237.93,33.15]
[1758308755199,1.90313811,237.95,237.94,32.46]
[1758308755399,2.85575068,237.95,237.94,32.46]
[1758308756018,1.90313811,237.99,237.94,33.17]
[1758308756321,1.05259156,237.98,237.95,0.71]
[1758308756622,1.05259156,237.98,237.96,32.44]
[1758308756816,1.90313811,237.99,237.97,32.44]
[1758308757126,1.05251332,237.98,237.97,32.44]
[1758308760937,4.73721209,238.02,237.97,33.1]
[1758308761233,2.95561145,238.01,237.97,33.1]
[1758308761406,1.05247334,238.0,237.97,33.1]
[1758308761612,1.05247334,238.0,237.98,0.66]
[1758308761811,1.05247334,238.0,237.99,32.42]
[1758308762021,4.20055749,238.07,237.99,33.08]
[1758308762231,1.90313811,238.04,237.99,33.08]
[1758308762530,1.90313811,238.04,238.0,0.66]
[1758308762724,1.90313811,238.04,238.01,0.66]
[1758308762904,1.90313811,238.04,238.02,33.1]
[1758308763104,1.90313811,238.06,238.03,32.44]
[1758308763333,1.90313811,238.06,238.04,33.1]
[1758308763522,1.90313811,238.06,238.05,33.1]
[1758308763830,1.90313811,238.06,238.05,32.44]
[1758308765832,1.90313811,238.08,238.05,33.1]
[1758308766610,1.90313811,238.08,238.05,32.44]
[1758308766811,1.90313811,238.08,238.06,0.66]
[1758308767123,1.90313811,238.09,238.06,0.66]
[1758308767310,7.03363868,238.12,238.06,0.66]
[1758308767513,1.90313811,238.09,238.06,0.66]
[1758308767812,1.90313811,238.1,238.07,0.66]
[1758308768009,1.90313811,238.1,238.08,32.44]
[1758308770235,1.90313811,238.11,238.08,32.44]
[1758308770528,1.90313811,238.11,238.09,0.66]
[1758308770736,1.90313811,238.13,238.1,0.66]
[1758308770909,1.90313811,238.13,238.11,33.08]
[1758308771109,1.90313811,238.13,238.12,32.42]
[1758308772033,1.90313811,238.13,238.12,33.08]
[1758308773131,2.83407398,238.18,238.12,33.08]
[1758308773132,1.90313811,238.15,238.12,33.08]
[1758308773320,1.90313811,238.15,238.13,0.66]
[1758308773522,1.90313811,238.15,238.14,0.66]
[1758308774537,4.19850533,238.18,238.14,0.66]
[1758308774743,1.90313811,238.15,238.14,0.66]
[1758308775034,1.90313811,238.15,238.14,33.06]
[1758308777834,4.19850533,238.18,238.14,33.06]
[1758308778040,4.29834205,238.19,238.15,0.66]
[1758308778214,1.90313811,238.17,238.15,0.66]
[1758308779644,1.90313811,238.17,238.14,32.4]
[1758308779836,1.90313811,238.15,238.14,32.4]
[1758308780942,1.90313811,238.15,238.14,33.06]
[1758308784040,1.90313811,238.15,238.12,0.66]
[1758308784237,1.90313811,238.13,238.12,0.66]
[1758308784435,1.90313811,238.13,238.1,80.8]
[1758308784636,1.90313811,238.11,238.1,80.8]
[1758308784941,1.90313811,238.11,238.1,81.46]
[1758308785138,1.90313811,238.11,238.1,113.16]
[1758308786734,6.10288988,238.11,238.06,0.69]
[1758308786925,1.90313811,238.07,238.06,0.69]
[1758308787334,1.90313811,238.07,238.06,33.05]
[1758308788439,4.19975177,238.11,238.06,33.05]
[1758308788741,1.90313811,238.07,238.06,32.36]
[1758308789131,1.90313811,238.07,238.06,33.05]
[1758308793353,6.10360449,238.07,238.0,0.69]
[1758308793559,1.90313811,238.01,238.0,0.69]
[1758308793734,4.20046638,238.07,238.0,33.05]
[1758308794046,1.90313811,238.01,237.98,34.08]
[1758308794254,1.90313811,237.99,237.98,34.77]
[1758308794552,1.90313811,237.99,237.98,66.46]
[1758308794847,1.90313811,237.99,237.98,32.38]
[1758308796854,33.10313811,237.99,237.98,32.38]
[1758308797647,1.90313811,237.99,237.98,32.42]
[1758308798134,1.90313811,237.99,237.91,12.85986717]
[1758308798135,2.95575451,237.99,237.91,0.1]
[1758308798334,1.05267613,237.98,237.92,32.42]
[1758308798553,1.90313811,237.93,237.92,32.42]
[1758308798756,1.90313811,237.93,237.92,33.11]
[1758308798947,1.90313811,237.93,237.92,32.42]
[1758308799253,1.90313811,237.93,237.91,0.1]
[1758308799438,31.2,237.94,237.92,33.17]
[1758308799766,1.90313811,237.93,237.92,32.48]
[1758308802559,1.90313811,237.93,237.92,33.17]
[1758308802952,31.2,237.95,237.92,32.48]
[1758308803171,1.90313811,237.93,237.92,32.48]
[1758308803658,1.90313811,237.93,237.92,33.17]
[1758308809459,1.90313811,237.93,237.92,32.48]
[1758308812845,1.90313811,237.93,237.91,0.1]
[1758308813045,1.90313811,237.93,237.92,32.46]
[1758308813759,1.90474756,237.93,237.91,0.1]
[1758308814437,2.97614917,237.92,237.91,0.1]
[1758308817166,7.17924264,237.92,237.81,0.1]
[1758308817472,2.97614917,237.82,237.81,0.1]
[1758308818347,2.97614917,237.82,237.81,0.78]
[1758308819179,31.2,237.84,237.81,0.78]
[1758308819366,2.97614917,237.82,237.81,0.78]
[1758308819767,2.97614917,237.82,237.81,33.32]
[1758308821672,2.97614917,237.82,237.81,0.78]
[1758308821871,2.97614917,237.82,237.81,33.3]
[1758308824973,2.97614917,237.82,237.81,0.1]
[1758308825280,34.17614917,237.82,237.81,0.1]
[1758308827285,2.97614917,237.82,237.81,0.1]
[1758308827646,34.17614917,237.82,237.81,0.1]
[1758308827985,34.17614917,237.82,237.81,0.82]
[1758308828989,34.17614917,237.82,237.81,0.1]
[1758308830153,2.97614917,237.82,237.81,0.1]
[1758308835700,4.66330778,237.82,237.81,0.1]
[1758308838987,5.71672738,237.82,237.81,0.1]
[1758308839187,31.2,237.79,237.78,0.2]
[1758308839394,41.03066222,237.79,237.75,0.2]
[1758308839690,34.17614917,237.76,237.75,0.2]
[1758308839874,35.22956877,237.76,237.75,0.2]
[1758308840079,4.02956877,237.76,237.75,0.2]
[1758308840989,4.02956877,237.76,237.71,0.3]
[1758308840990,5.71722567,237.76,237.71,0.3]
[1758308841178,34.17614917,237.73,237.71,0.3]
[1758308841690,2.97614917,237.73,237.71,1.02]
[1758308842064,2.97614917,237.79,237.72,0.72]
[1758308842267,2.97614917,237.73,237.72,0.72]
[1758308842462,32.58,237.82,237.72,0.72]
[1758308842693,15.63410997,237.73,237.72,0.72]
[1758308843469,2.97614917,237.73,237.72,20.72]
[1758308844273,2.97614917,237.73,237.72,0.72]
[1758308847902,31.2,237.74,237.72,0.72]
[1758308848223,2.97614917,237.73,237.72,0.72]
[1758308849188,2.97614917,237.73,237.72,33.28]
[1758308850695,12.65582484,237.79,237.72,53.28]
[1758308850997,12.65582484,237.79,237.74,20.0]
[1758308850998,2.97614917,237.75,237.74,20.0]
[1758308851178,2.97614917,237.75,237.74,20.66]
[1758308851579,31.2,237.84,237.74,20.66]
[1758308851781,2.97614917,237.78,237.75,0.66]
[1758308851982,31.2,237.79,237.76,32.56]
[1758308852183,2.97614917,237.77,237.76,32.56]
[1758308852907,2.97614917,237.77,237.76,33.22]
[1758308853483,2.97614917,237.77,237.76,53.22]
[1758308854098,12.65315591,237.84,237.76,53.22]
[1758308854299,2.97614917,237.77,237.76,52.56]
[1758308854803,2.97614917,237.77,237.76,53.22]
[1758308856687,2.97614917,237.78,237.76,53.22]
[1758308856887,2.97614917,237.78,237.77,0.66]
[1758308857806,2.97614917,237.78,237.71,3.27614917]
[1758308857807,2.97614917,237.78,237.73,20.66]
[1758308857991,31.2,237.82,237.75,20.0]
[1758308858195,2.97614917,237.76,237.75,20.0]
[1758308858406,2.97614917,237.76,237.75,52.62]
[1758308858911,2.97614917,237.76,237.75,53.28]
[1758308862015,12.65368961,237.81,237.75,53.28]
[1758308862222,31.2,237.78,237.77,20.0]
[1758308862414,31.2,237.78,237.77,52.6]
[1758308862598,31.2,237.78,237.77,53.26]
[1758308862803,31.2,237.87,237.77,53.26]
[1758308862998,31.2,237.8,237.78,0.66]
[1758308863238,31.2,237.8,237.79,32.6]
[1758308863394,34.17614917,237.8,237.79,32.6]
[1758308864216,12.65315591,237.83,237.79,33.26]
[1758308864415,60.21175567,237.96,237.82,20.0]
[1758308864617,12.65102157,237.9,237.83,32.62]
[1758308864832,31.2,237.87,237.83,32.62]
[1758308865033,3.88178388,237.86,237.83,32.62]
[1758308865326,1.05322361,237.85,237.83,32.62]
[1758308865698,2.97614917,237.84,237.83,32.62]
[1758308865919,4.02937278,237.84,237.83,32.62]
[1758308867836,4.02937278,237.84,237.83,33.28]
[1758308868904,4.02937278,237.84,237.83,32.62]
[1758308869126,4.02937278,237.84,237.83,32.6]
[1758308870225,6.85966553,237.84,237.83,32.6]
[1758308870520,35.22937278,237.84,237.83,32.6]
[1758308870727,38.05966553,237.84,237.83,32.6]
[1758308870911,38.05966553,237.84,237.81,0.66]
[1758308871102,1.05322361,237.83,237.82,32.6]
[1758308872109,1.05322361,237.83,237.82,33.26]
[1758308872824,4.02937278,237.83,237.82,33.26]
[1758308873720,4.02943949,237.83,237.82,33.26]
[1758308874727,4.02943949,237.83,237.82,32.6]
[1758308875099,4.02943949,237.83,237.82,33.26]
[1758308875516,4.02943949,237.83,237.82,0.66]
[1758308875830,35.22991477,237.83,237.82,33.24]
[1758308876012,4.02991477,237.83,237.82,33.24]
[1758308876536,2.95832558,237.83,237.82,33.24]
[1758308877433,2.95832558,237.83,237.79,32.56]
[1758308877742,1.90503526,237.8,237.79,33.23]
[1758308877934,2.95832558,237.8,237.79,33.23]
[1758308878628,34.15832558,237.8,237.79,33.23]
[1758308879010,2.95832558,237.8,237.79,33.23]
[1758308880117,1.05329032,237.8,237.79,33.23]
[1758308880317,2.95832558,237.8,237.79,33.23]
[1758308881113,2.95832558,237.8,237.79,0.67]
[1758308881318,2.95832558,237.8,237.79,33.23]
[1758308884032,2.95832558,237.8,237.77,0.68]
[1758308884239,1.05329032,237.79,237.78,32.54]
[1758308884535,32.25344823,237.8,237.78,33.22]
[1758308884729,1.05344823,237.79,237.78,32.54]
[1758308885108,31.2,237.82,237.78,32.54]
[1758308885309,1.90503526,237.8,237.79,0.68]
[1758308885516,1.90503526,237.84,237.79,20.68]
[1758308885830,1.05329039,237.83,237.8,33.24]
[1758308886032,1.05329039,237.83,237.81,0.68]
[1758308886229,1.05329039,237.83,237.82,32.58]
[1758308886419,2.95832565,237.83,237.82,33.26]
[1758308887039,1.05329039,237.83,237.82,33.26]
[1758308887331,2.95832565,237.83,237.82,33.26]
[1758308888035,34.15832565,237.83,237.82,33.26]
[1758308888445,2.95832565,237.83,237.82,33.26]
[1758308889124,1.05329039,237.83,237.82,33.26]
[1758308889326,2.95832565,237.83,237.82,33.26]
[1758308891328,1.05329039,237.83,237.82,33.26]
[1758308892327,2.95832565,237.83,237.82,33.26]
[1758308896142,31.2,237.82,237.79,20.68]
[1758308896442,1.05329039,237.81,237.8,33.2]
[1758308896634,1.05329039,237.81,237.8,32.52]
[1758308896832,3.89025673,237.87,237.81,20.0]
[1758308897028,35.09025673,237.86,237.82,32.52]
[1758308897232,3.89025673,237.85,237.82,33.2]
[1758308897429,1.05329745,237.84,237.82,33.2]
[1758308897743,34.15833271,237.83,237.82,33.2]
[1758308897923,36.99529199,237.83,237.82,33.2]
[1758308898116,3.89025673,237.83,237.82,33.2]
[1758308898322,2.95833271,237.83,237.82,33.2]
[1758308900348,2.95833271,237.83,237.82,0.68]
[1758308900522,2.95833271,237.83,237.82,33.18]
[1758308900523,5.79529199,237.83,237.82,33.18]
[1758308901442,1.05329745,237.83,237.82,33.18]
[1758308901744,31.2,237.84,237.83,20.0]
[1758308901933,1.05315908,237.84,237.83,53.18]
[1758308902336,2.95819434,237.84,237.83,53.18]
[1758308903140,1.05315908,237.84,237.83,53.18]
[1758308904742,2.95819434,237.84,237.83,53.18]
[1758308907337,2.95819138,237.84,237.83,53.18]
[1758308908157,1.05315612,237.84,237.83,53.18]
[1758308908332,2.95819138,237.84,237.83,53.18]
[1758308908752,1.05315612,237.84,237.83,53.18]
[1758308909648,2.83711737,237.85,237.83,53.18]
[1758308909852,1.90503526,237.84,237.83,52.5]
[1758308910342,1.90503526,237.85,237.83,52.5]
[1758308910551,1.90503526,237.85,237.84,0.68]
[1758308912362,1.90503526,237.86,237.85,20.0]
[1758308912540,1.90503526,237.86,237.85,53.14]
[1758308914846,2.83711737,237.91,237.87,20.0]
[1758308915048,2.83711737,237.91,237.88,32.44]
[1758308915345,2.83711737,237.92,237.88,32.44]
[1758308915544,2.83711737,237.91,237.88,32.44]
[1758308915743,2.83711737,237.92,237.88,32.44]
[1758308916150,1.90503526,237.89,237.88,32.44]
[1758308916855,2.83711737,237.92,237.88,32.44]
[1758308917042,2.83711737,237.95,237.94,20.0]
[1758308917243,1.90503526,237.95,237.94,52.44]
[1758308917555,1.90503526,237.95,237.94,33.12]
[1758308917747,4.74215263,237.95,237.94,53.12]
[1758308918262,1.90503526,237.95,237.94,53.12]
[1758308919347,2.83711737,237.96,237.94,52.44]
[1758308919532,1.90503526,237.95,237.94,52.44]
[1758308920361,1.90503526,237.95,237.94,53.12]
[1758308921060,1.90503526,237.95,237.94,32.44]
[1758308921441,34.03711737,237.97,237.94,52.44]
[1758308921636,1.90503526,237.95,237.94,52.44]
[1758308922646,1.90503526,237.95,237.92,20.0]
[1758308922970,1.90503526,237.93,237.92,20.0]
[1758308923160,1.90503526,237.93,237.92,52.44]
[1758308923537,1.90503526,237.93,237.92,53.12]
[1758308925061,1.90503526,237.93,237.92,53.1]
[1758308926063,1.90503526,237.93,237.92,33.1]
[1758308926269,1.90503526,237.93,237.92,53.1]
[1758308929267,1.90503526,237.93,237.92,33.1]
[1758308929467,1.90503526,237.93,237.92,53.1]
[1758308929843,1.90503526,237.93,237.92,53.08]
[1758308932267,1.90503526,237.93,237.92,20.68]
[1758308932576,1.90503526,237.93,237.92,53.08]
[1758308937776,1.90352741,237.93,237.92,53.08]
[1758308938459,2.97377083,237.93,237.92,53.08]
[1758308944358,31.2,237.98,237.92,53.08]
[1758308944359,31.2,237.98,237.94,20.0]
[1758308944673,31.3,237.99,237.95,32.36]
[1758308944867,0.1,237.99,237.98,20.0]
[1758308945177,0.1,237.99,237.98,53.08]
[1758308945377,3.07377083,237.99,237.98,53.08]
[1758308946570,3.07377083,237.99,237.98,52.36]
[1758308947975,34.27377083,237.99,237.98,53.08]
[1758308948595,3.07377083,237.99,237.98,53.08]
[1758308950378,0.1,237.99,237.98,53.08]
[1758308950785,0.1,237.99,237.98,66.67559401]
[1758308953981,0.1,237.99,237.98,69.64936484]
[1758308954167,0.1,237.99,237.98,66.67559401]
[1758308956579,0.1,237.99,237.98,69.64936484]
[1758308957583,0.1,237.99,237.98,71.33446226]
[1758308959089,0.1,237.99,237.98,71.75466563]
[1758308959283,0.1,237.99,237.98,68.7808948]
[1758308959487,0.1,237.99,237.98,75.95669941]
[1758308961789,0.1,237.99,237.98,156.75669941]
[1758308961994,0.1,237.99,237.98,156.33649604]
[1758308964079,0.1,237.99,237.98,116.80069143]
[1758308964281,0.1,237.99,237.98,149.14069143]
[1758308967193,0.1,237.99,237.98,152.11446226]
[1758308974278,0.1,237.99,237.98,156.31649604]
[1758308974598,0.1,237.99,237.98,187.51649604]
[1758308976194,0.1,237.99,237.98,184.54272521]
[1758308976383,0.1,237.99,237.98,187.51649604]
[1758308977980,0.1,237.99,237.98,155.17649604]
[1758308978180,0.1,237.99,237.98,116.80069143]
[1758308978391,0.1,237.99,237.98,152.11446226]
[1758308978903,0.1,237.99,237.98,149.14069143]
[1758308979204,0.1,237.99,237.98,148.42069143]
[1758308979388,0.1,237.99,237.98,116.08069143]
[1758308979707,0.1,237.99,237.98,149.11069143]
[1758308981492,0.1,237.99,237.98,152.08446226]
[1758308983101,0.1,237.99,237.98,149.11069143]
[1758308987310,0.1,237.99,237.98,152.08446226]
[1758308987500,0.1,237.99,237.98,119.74446226]
[1758308987693,0.1,237.99,237.98,152.08446226]
[1758308989804,0.1,237.99,237.98,149.11069143]
[1758308990886,0.1,237.99,237.98,116.77069143]
[1758308991082,0.1,237.99,237.98,149.11069143]
[1758308992217,0.1,237.99,237.98,152.08446226]
[1758308997505,0.1,237.99,237.98,156.28649604]
[1758308999829,0.1,237.99,237.98,156.28228831]
[1758309000430,0.1,237.99,237.98,155.21275292]
[1758309000630,0.1,238.01,238.0,33.59559401]
[1758309000932,0.1,238.01,238.0,147.05576207]
[1758309001132,0.1,238.01,238.0,147.29559401]
[1758309001334,0.1,238.01,238.0,150.88036427]
[1758309003436,0.1,238.01,238.0,148.98033656]
[1758309005438,0.1,238.01,238.0,153.18201723]
[1758309006136,0.1,238.01,238.0,120.84201723]
[1758309006446,0.1,238.01,238.0,153.18201723]
[1758309012214,0.1,238.01,238.0,155.08204494]
[1758309014922,0.1,238.01,238.0,153.18201723]
[1758309015117,0.1,238.01,238.0,155.08204494]
[1758309019740,0.1,238.01,238.0,122.74204494]
[1758309019916,0.1,238.01,238.0,155.06204494]
[1758309021022,0.1,238.04,238.03,64.79559401]
[1758309021344,0.1,238.04,238.03,179.71562172]
[1758309021549,0.1,238.04,238.03,180.37562172]
[1758309021740,0.1,238.04,238.03,182.06008048]
[1758309022549,0.1,238.04,238.03,186.26123159]
[1758309023851,0.1,238.09,238.08,33.59559401]
[1758309024057,0.1,238.09,238.08,116.19562172]
[1758309024250,0.1,238.09,238.08,148.51562172]
[1758309024648,0.1,238.09,238.08,150.8598677]
[1758309025063,0.1,238.09,238.08,150.1998677]
[1758309025754,0.1,238.09,238.08,150.8598677]
[1758309025932,0.1,238.09,238.08,155.06013651]
[1758309026253,0.1,238.09,238.08,150.1998677]
[1758309027849,0.1,238.09,238.08,150.8598677]
[1758309028574,0.1,238.09,238.08,117.8798677]
[1758309028749,0.1,238.09,238.08,150.1998677]
[1758309031363,0.1,238.09,238.08,150.8598677]
[1758309032354,0.1,238.09,238.08,150.1998677]
[1758309033449,0.1,238.09,238.08,150.8598677]
[1758309036058,0.1,238.09,238.08,155.06013651]
[1758309037566,0.1,238.09,238.08,153.1601088]
[1758309037745,0.1,238.09,238.08,155.06013651]
[1758309044053,0.1,238.1,238.09,94.19559401]
[1758309044353,0.1,238.1,238.09,129.05562172]
[1758309045158,0.1,238.1,238.09,130.73972589]
[1758309045960,0.1,238.1,238.09,134.93981829]
[1758309049793,0.1,238.1,238.09,147.72783962]
[1758309054075,0.1,238.15,238.11,17.79533362]
[1758309054262,0.1,238.15,238.14,35.49562172]
[1758309054583,0.1,238.15,238.14,67.79562172]
[1758309056073,0.1,238.15,238.14,148.29562172]
[1758309057276,0.1,238.15,238.14,148.95562172]
[1758309057884,0.1,238.15,238.14,148.29562172]
[1758309058688,0.1,238.15,238.14,148.97562172]
[1758309059758,0.1,238.15,238.14,150.65808906]
[1758309060871,0.1,238.15,238.14,151.7257609]
[1758309061562,0.1,238.15,238.14,151.0457609]
[1758309062371,0.1,238.15,238.14,151.7257609]
[1758309066879,0.1,238.15,238.14,151.0457609]
[1758309067588,0.1,238.15,238.14,115.77955638]
[1758309067785,0.1,238.15,238.14,67.55955638]
[1758309068966,0.1,238.15,238.14,21.68396237]
[1758309069180,34.26620452,238.15,238.08,20.0]
[1758309069390,2.96620452,238.1,238.09,32.28]
[1758309069586,2.96620452,238.1,238.09,52.28]
[1758309069788,15.60283812,238.1,238.09,32.28]
[1758309070093,12.6366336,238.1,238.09,52.28]
[1758309070275,0.1,238.15,238.09,52.28]
[1758309070483,31.2,238.13,238.09,52.28]
[1758309070800,31.2,238.1,238.09,52.28]
[1758309071670,31.2,238.1,238.09,20.0]
[1758309071984,31.2,238.1,238.09,52.28]
[1758309072495,34.16620452,238.1,238.09,52.28]
[1758309075192,31.2,238.1,238.09,52.28]
[1758309075401,2.96620452,238.1,238.09,52.28]
[1758309075694,34.16620452,238.1,238.09,52.28]
[1758309076087,12.6366336,238.13,238.11,20.0]
[1758309076287,2.96620452,238.12,238.11,20.0]
[1758309076485,2.96620452,238.12,238.11,52.3]
[1758309077388,34.16620452,238.12,238.11,52.3]
[1758309077584,36.99513115,238.12,238.11,52.3]
[1758309077804,36.99513115,238.12,238.03,14.27559401]
[1758309077805,36.99513115,238.12,238.07,20.0]
[1758309077993,2.96620452,238.08,238.07,20.0]
[1758309078207,2.96620452,238.08,238.07,52.3]
[1758309082507,2.96620452,238.1,238.07,52.3]
[1758309083487,2.96620452,238.1,238.07,20.0]
[1758309083788,2.96620452,238.1,238.08,32.3]
[1758309084178,2.96620452,238.09,238.08,32.3]
[1758309084603,2.96620452,238.09,238.07,20.0]
[1758309084793,2.96620452,238.09,238.08,32.3]
[1758309086087,2.96620452,238.1,238.08,32.3]
[1758309087788,31.2,238.11,238.08,32.3]
[1758309087789,31.11958042,238.11,238.08,32.3]
[1758309088104,2.96620452,238.1,238.08,32.34519231]
[1758309089011,2.96620452,238.09,238.08,32.34519231]
[1758309090398,2.96620452,238.1,238.08,32.34519231]
[1758309091215,2.96620452,238.1,238.08,33.01519231]
[1758309091606,2.96620452,238.11,238.08,32.34519231]
[1758309092316,34.16620452,238.11,238.08,33.01519231]
[1758309092511,34.16620452,238.11,238.09,20.0]
[1758309092707,34.16620452,238.11,238.1,32.3]
[1758309093016,12.6371659,238.14,238.11,20.0]
[1758309093216,0.1,238.15,238.12,32.3]
[1758309093517,3.06620452,238.15,238.11,20.67]
[1758309093708,3.06620452,238.15,238.12,32.3]
[1758309094022,31.2,238.14,238.12,32.3]
[1758309095978,31.2,238.14,238.13,20.67]
[1758309096118,0.1,238.15,238.13,20.67]
[1758309096325,31.3,238.15,238.14,32.3]
[1758309097627,0.1,238.15,238.14,32.3]
[1758309097820,34.26620452,238.15,238.14,32.3]
[1758309098026,37.09019655,238.15,238.14,32.3]
[1758309101214,2.92399203,238.15,238.14,32.97]
[1758309101412,0.1,238.15,238.14,32.97]
[1758309101612,0.1,238.15,238.14,32.3]
[1758309102730,31.3,238.15,238.14,32.3]
[1758309102933,0.1,238.15,238.14,32.3]
[1758309103138,34.26620452,238.15,238.14,32.3]
[1758309103348,3.06620452,238.15,238.14,32.97]
[1758309103634,0.1,238.15,238.14,32.97]
[1758309103833,31.3,238.15,238.14,32.97]
[1758309104206,34.12551464,238.15,238.14,32.97]
[1758309104428,31.3,238.15,238.14,32.97]
[1758309104634,0.1,238.17,238.15,20.0]
[1758309104833,0.1,238.17,238.16,32.3]
[1758309105135,0.1,238.17,238.16,32.97]
[1758309105308,0.1,238.17,238.16,35.93620452]
[1758309107630,0.1,238.17,238.16,35.26620452]
[1758309107939,2.9265165,238.17,238.16,35.93620452]
[1758309108125,2.9265165,238.17,238.08,0.04519231]
[1758309108126,31.2,238.15,238.08,0.04519231]
[1758309108431,2.96620452,238.09,238.08,0.04519231]
[1758309108735,5.79272102,238.09,238.08,0.04519231]
[1758309108947,6.47272102,238.09,238.08,0.04519231]
[1758309109120,19.11361431,238.09,238.08,0.04519231]
[1758309111638,18.43361431,238.09,238.08,0.04519231]
[1758309112032,19.11361431,238.09,238.08,0.04519231]
[1758309115149,18.43361431,238.09,238.08,0.04519231]
[1758309115643,15.46740979,238.09,238.08,0.73519231]
[1758309115824,18.43361431,238.09,238.08,20.73519231]
[1758309116134,49.63361431,238.09,238.08,0.04519231]
[1758309116341,36.99272102,238.09,238.08,0.04519231]
[1758309116930,36.99272102,238.09,238.08,0.73519231]
[1758309117324,2.8265165,238.09,238.08,20.73519231]
[1758309117638,2.96620452,238.11,238.08,20.73519231]
[1758309117821,31.2,238.09,238.08,20.04519231]
[1758309118023,34.0265165,238.09,238.08,20.04519231]
[1758309118542,2.8265165,238.09,238.08,20.73519231]
[1758309118838,34.16620452,238.09,238.08,20.73519231]
[1758309119046,36.99272102,238.09,238.08,20.73519231]
[1758309119823,5.79653678,238.09,238.08,20.73519231]
[1758309120234,2.8265165,238.09,238.08,20.73519231]
[1758309120442,2.8265165,238.09,238.08,53.17519231]
[1758309120746,2.8265165,238.11,238.1,20.0]
[1758309121225,2.8265165,238.12,238.1,20.7]
[1758309121546,2.8265165,238.12,238.11,33.14]
[1758309122344,2.8265165,238.13,238.12,20.0]
[1758309122554,4.72684478,238.13,238.12,20.0]
[1758309122730,31.2,238.11,238.1,52.44]
[1758309123043,35.92684478,238.11,238.1,52.44]
[1758309123434,35.92684478,238.11,238.1,32.44]
[1758309125527,34.0265165,238.11,238.1,32.44]
[1758309125954,35.92684478,238.11,238.1,32.44]
[1758309127651,35.92684478,238.11,238.08,20.04519231]
[1758309127841,2.8265165,238.1,238.09,32.44]
[1758309128042,4.72684478,238.1,238.09,32.44]
[1758309128550,4.72684478,238.1,238.09,33.14]
[1758309130842,4.72684478,238.1,238.09,32.44]
[1758309131448,4.72684478,238.1,238.09,33.14]
[1758309131449,2.8265165,238.1,238.09,33.14]
[1758309131648,0.6665165,238.1,238.09,33.14]
[1758309131850,0.69,238.12,238.11,20.0]
[1758309132050,2.59032828,238.12,238.11,52.44]
[1758309132244,1.90032828,238.12,238.11,52.44]
[1758309132641,0.69,238.14,238.11,52.44]